[Event "Early-Titled-Tuesday-Blitz-January-16-2024"]
[Site "Chess.com"]
[Date "2024.01.16"]
[Round "4"]
[White "Aguiar94"]
[Black "KorolDimitriy75"]
[Result "1-0"]
[WhiteElo "2528"]
[BlackElo "2343"]
[TimeControl "180+1"]
[EndTime "8:42:46 PST"]
[Termination "Aguiar94 won on time"]

1. e4 {[%clk 0:02:58.5]} 1... c5 {[%clk 0:03:00.1]} 2. Nf3 {[%clk 0:02:57.7]}
2... d6 {[%clk 0:03:00.5]} 3. d4 {[%clk 0:02:57.5]} 3... cxd4 {[%clk 0:03:01.4]}
4. Qxd4 {[%clk 0:02:58]} 4... a6 {[%clk 0:03:01]} 5. Be2 {[%clk 0:02:57.6]} 5...
Nc6 {[%clk 0:03:01.5]} 6. Qe3 {[%clk 0:02:58.1]} 6... g6 {[%clk 0:03:00.9]} 7.
O-O {[%clk 0:02:56.1]} 7... Bg7 {[%clk 0:03:00.4]} 8. c4 {[%clk 0:02:55.7]} 8...
Nf6 {[%clk 0:02:59]} 9. h3 {[%clk 0:02:52.9]} 9... O-O {[%clk 0:02:57]} 10. Rd1
{[%clk 0:02:50.9]} 10... Nd7 {[%clk 0:02:47.4]} 11. Nc3 {[%clk 0:02:47.3]} 11...
Nc5 {[%clk 0:02:40.2]} 12. Rb1 {[%clk 0:02:38.6]} 12... a5 {[%clk 0:02:39.7]}
13. Nd5 {[%clk 0:02:12.1]} 13... Be6 {[%clk 0:02:17.2]} 14. b3 {[%clk
0:02:05.9]} 14... Bxd5 {[%clk 0:02:04]} 15. exd5 {[%clk 0:02:06.8]} 15... Ne5
{[%clk 0:02:03.8]} 16. Nd4 {[%clk 0:02:02.9]} 16... Re8 {[%clk 0:01:58.1]} 17.
Bb2 {[%clk 0:01:57.6]} 17... Qb6 {[%clk 0:01:39.7]} 18. Nb5 {[%clk 0:01:48.7]}
18... Rac8 {[%clk 0:01:22.5]} 19. Bd4 {[%clk 0:01:40.2]} 19... Ned7 {[%clk
0:01:18.5]} 20. a3 {[%clk 0:01:36.9]} 20... Bxd4 {[%clk 0:01:13.9]} 21. Rxd4
{[%clk 0:01:37.8]} 21... a4 {[%clk 0:00:32.1]} 22. bxa4 {[%clk 0:01:30.6]} 22...
Nxa4 {[%clk 0:00:20.6]} 23. Bg4 {[%clk 0:01:05.8]} 23... Nac5 {[%clk 0:00:15.4]}
24. Rf4 {[%clk 0:00:46.4]} 24... Ra8 {[%clk 0:00:13]} 25. Re1 {[%clk 0:00:42.3]}
25... Nf6 {[%clk 0:00:11.9]} 26. Bd1 {[%clk 0:00:36]} 26... Qa5 {[%clk 0:00:11]}
27. Rf1 {[%clk 0:00:29.8]} 27... Rac8 {[%clk 0:00:09.3]} 28. Qd4 {[%clk
0:00:29.9]} 28... Ncd7 {[%clk 0:00:08.6]} 29. Be2 {[%clk 0:00:25.7]} 29... Qb6
{[%clk 0:00:08.7]} 30. Qb2 {[%clk 0:00:24.3]} 30... Ne5 {[%clk 0:00:08.3]} 31.
Re1 {[%clk 0:00:21.9]} 31... Qc5 {[%clk 0:00:08]} 32. Bf1 {[%clk 0:00:21.8]}
32... Ra8 {[%clk 0:00:07.5]} 33. Re3 {[%clk 0:00:21.7]} 33... Rac8 {[%clk
0:00:05.7]} 34. Be2 {[%clk 0:00:21.9]} 34... Ra8 {[%clk 0:00:05.8]} 35. Qd2
{[%clk 0:00:21.6]} 35... Rac8 {[%clk 0:00:05.7]} 36. Rd4 {[%clk 0:00:21.6]}
36... Qb6 {[%clk 0:00:05.7]} 37. Qb2 {[%clk 0:00:21]} 37... Ra8 {[%clk
0:00:05.7]} 38. f4 {[%clk 0:00:20.6]} 38... Ned7 {[%clk 0:00:05.1]} 39. Kf2
{[%clk 0:00:20.4]} 39... Qc5 {[%clk 0:00:05.2]} 40. Qb4 {[%clk 0:00:19.8]} 40...
Rac8 {[%clk 0:00:04.4]} 41. Kf3 {[%clk 0:00:18.5]} 41... Kf8 {[%clk 0:00:04]}
42. g4 {[%clk 0:00:18.2]} 42... Nb6 {[%clk 0:00:03.8]} 43. Qb2 {[%clk
0:00:16.6]} 43... Nbd7 {[%clk 0:00:02.6]} 44. Qd2 {[%clk 0:00:15.8]} 44... Nb6
{[%clk 0:00:03.2]} 45. g5 {[%clk 0:00:15.8]} 45... Nfd7 {[%clk 0:00:03.2]} 46.
Kg3 {[%clk 0:00:15.5]} 46... Kg8 {[%clk 0:00:03.6]} 47. Rc3 {[%clk 0:00:13.1]}
47... Nf8 {[%clk 0:00:03.5]} 48. Bg4 {[%clk 0:00:13.1]} 48... Rcd8 {[%clk
0:00:03.3]} 49. h4 {[%clk 0:00:13.7]} 49... Ra8 {[%clk 0:00:02.1]} 50. Qb2
{[%clk 0:00:12]} 50... Rab8 {[%clk 0:00:02.2]} 51. Qb4 {[%clk 0:00:11.8]} 51...
Ra8 {[%clk 0:00:02]} 52. Qxc5 {[%clk 0:00:11.6]} 52... dxc5 {[%clk 0:00:02.9]}
53. Re4 {[%clk 0:00:12.2]} 53... Na4 {[%clk 0:00:02.9]} 54. Rce3 {[%clk
0:00:11.7]} 54... Rab8 {[%clk 0:00:02]} 55. Rxe7 {[%clk 0:00:11]} 55... Rxe7
{[%clk 0:00:02.5]} 56. Rxe7 {[%clk 0:00:11.9]} 56... Nb2 {[%clk 0:00:02.8]} 57.
Re4 {[%clk 0:00:09.8]} 57... Ra8 {[%clk 0:00:02]} 58. d6 {[%clk 0:00:09]} 58...
Rd8 {[%clk 0:00:01.9]} 59. Kf2 {[%clk 0:00:07.3]} 59... Nd7 {[%clk 0:00:01.9]}
60. Bxd7 {[%clk 0:00:05.8]} 60... Rxd7 {[%clk 0:00:02.8]} 61. Ke3 {[%clk
0:00:06.3]} 61... Kf8 {[%clk 0:00:02]} 62. Kd2 {[%clk 0:00:06.8]} 1-0

[Event "Early-Titled-Tuesday-Blitz-January-16-2024"]
[Site "Chess.com"]
[Date "2024.01.16"]
[Round "4"]
[White "R2D2PTY"]
[Black "Herman-NY"]
[Result "0-1"]
[WhiteElo "2229"]
[BlackElo "2487"]
[TimeControl "180+1"]
[EndTime "8:42:47 PST"]
[Termination "Herman-NY won by resignation"]

1. e4 {[%clk 0:03:00.9]} 1... c5 {[%clk 0:02:57.8]} 2. Nc3 {[%clk 0:03:00]} 2...
a6 {[%clk 0:02:57.1]} 3. d4 {[%clk 0:02:59.2]} 3... cxd4 {[%clk 0:02:57.2]} 4.
Qxd4 {[%clk 0:03:00.1]} 4... Nc6 {[%clk 0:02:57.6]} 5. Qe3 {[%clk 0:03:00.6]}
5... g6 {[%clk 0:02:56.9]} 6. b3 {[%clk 0:02:49.3]} 6... Bg7 {[%clk 0:02:42.8]}
7. Bb2 {[%clk 0:02:48.8]} 7... Qa5 {[%clk 0:02:41.3]} 8. O-O-O {[%clk
0:02:46.2]} 8... Nf6 {[%clk 0:02:36.8]} 9. Kb1 {[%clk 0:02:32.2]} 9... O-O
{[%clk 0:02:25.3]} 10. f4 {[%clk 0:02:24.4]} 10... d6 {[%clk 0:02:04.7]} 11. h4
{[%clk 0:01:31.7]} 11... Bg4 {[%clk 0:01:45.4]} 12. Be2 {[%clk 0:01:26.4]} 12...
Rfc8 {[%clk 0:01:28.9]} 13. Nd5 {[%clk 0:01:21.2]} 13... Bxe2 {[%clk 0:01:03.2]}
14. Nxe2 {[%clk 0:01:08.5]} 14... Ng4 {[%clk 0:00:29.6]} 15. Qb6 {[%clk
0:00:52.7]} 15... Bxb2 {[%clk 0:00:27.3]} 16. Kxb2 {[%clk 0:00:41.5]} 16... Qxb6
{[%clk 0:00:09.7]} 17. Nxb6 {[%clk 0:00:41.7]} 17... Nf2 {[%clk 0:00:08.8]} 18.
Nxa8 {[%clk 0:00:30.8]} 18... Nxd1+ {[%clk 0:00:08.5]} 19. Rxd1 {[%clk
0:00:30.6]} 19... Rxa8 {[%clk 0:00:09.3]} 20. Nc3 {[%clk 0:00:28.6]} 20... Kf8
{[%clk 0:00:08]} 21. Nd5 {[%clk 0:00:28]} 21... Rd8 {[%clk 0:00:06.5]} 22. c4
{[%clk 0:00:26.9]} 22... e6 {[%clk 0:00:06.3]} 23. Nf6 {[%clk 0:00:21.7]} 23...
Ke7 {[%clk 0:00:06.5]} 24. Ng4 {[%clk 0:00:19.2]} 24... h5 {[%clk 0:00:06.1]}
25. Ne3 {[%clk 0:00:19.2]} 25... f5 {[%clk 0:00:05.7]} 26. exf5 {[%clk
0:00:15.4]} 26... gxf5 {[%clk 0:00:06.6]} 27. Re1 {[%clk 0:00:11]} 27... Rg8
{[%clk 0:00:06.8]} 28. Nxf5+ {[%clk 0:00:09.9]} 28... Kd7 {[%clk 0:00:06.4]} 29.
Ne3 {[%clk 0:00:08.5]} 29... Rg3 {[%clk 0:00:06.1]} 30. Re2 {[%clk 0:00:06.8]}
30... Nd4 {[%clk 0:00:06.1]} 31. Re1 {[%clk 0:00:06.8]} 31... b5 {[%clk
0:00:04.8]} 32. cxb5 {[%clk 0:00:06.6]} 32... axb5 {[%clk 0:00:05.7]} 33. Kc3
{[%clk 0:00:06.6]} 33... Nc6 {[%clk 0:00:05.4]} 34. Kd2 {[%clk 0:00:05.7]} 34...
b4 {[%clk 0:00:04.5]} 35. Re2 {[%clk 0:00:05.3]} 35... Nd4 {[%clk 0:00:04.6]}
36. Rf2 {[%clk 0:00:05.6]} 36... Ke7 {[%clk 0:00:03.2]} 37. f5 {[%clk
0:00:05.9]} 37... e5 {[%clk 0:00:02.7]} 38. Nd5+ {[%clk 0:00:04.7]} 38... Kf7
{[%clk 0:00:03]} 39. Ne3 {[%clk 0:00:04.8]} 39... Rg8 {[%clk 0:00:01.8]} 40. Nc4
{[%clk 0:00:04.8]} 40... Ke7 {[%clk 0:00:01.3]} 41. f6+ {[%clk 0:00:05.2]} 41...
Ke6 {[%clk 0:00:01.8]} 42. Ke3 {[%clk 0:00:03.4]} 42... Rf8 {[%clk 0:00:02.2]}
43. Nd2 {[%clk 0:00:02.5]} 43... d5 {[%clk 0:00:02.5]} 44. Nf3 {[%clk
0:00:02.7]} 44... Nc6 {[%clk 0:00:02.4]} 45. Ng5+ {[%clk 0:00:03.6]} 45... Kd6
{[%clk 0:00:02.7]} 46. f7 {[%clk 0:00:04]} 46... Nd8 {[%clk 0:00:03.1]} 47. Nh7
{[%clk 0:00:04.4]} 47... Rxf7 {[%clk 0:00:03.1]} 48. Rc2 {[%clk 0:00:05]} 48...
Rxh7 {[%clk 0:00:02.6]} 49. Rf2 {[%clk 0:00:03.6]} 49... Rd7 {[%clk 0:00:03.5]}
50. Rc2 {[%clk 0:00:04.3]} 50... Ne6 {[%clk 0:00:03.9]} 51. Rf2 {[%clk
0:00:04.9]} 51... Nc5 {[%clk 0:00:02.8]} 52. Rf6+ {[%clk 0:00:05.3]} 52... Ne6
{[%clk 0:00:03.7]} 53. Rh6 {[%clk 0:00:05.6]} 53... Rc7 {[%clk 0:00:04.2]} 54.
Rxh5 {[%clk 0:00:06.2]} 54... Rc3+ {[%clk 0:00:05.1]} 55. Kd2 {[%clk 0:00:06.3]}
55... Rg3 {[%clk 0:00:05.4]} 56. Rh6 {[%clk 0:00:06.7]} 56... Rxg2+ {[%clk
0:00:05.6]} 57. Ke3 {[%clk 0:00:07.6]} 57... Rg3+ {[%clk 0:00:05.5]} 58. Kf2
{[%clk 0:00:07]} 58... Rh3 {[%clk 0:00:05.7]} 59. Kg2 {[%clk 0:00:06.7]} 59...
Rc3 {[%clk 0:00:04.8]} 60. Rf6 {[%clk 0:00:06.8]} 60... Ke7 {[%clk 0:00:05]} 61.
Rh6 {[%clk 0:00:06.5]} 61... Nf4+ {[%clk 0:00:05.2]} 62. Kf2 {[%clk 0:00:06.5]}
62... Rh3 {[%clk 0:00:05.4]} 63. Rb6 {[%clk 0:00:04.8]} 63... d4 {[%clk
0:00:05.7]} 64. Rb7+ {[%clk 0:00:03.6]} 64... Ke6 {[%clk 0:00:05.7]} 65. Rb6+
{[%clk 0:00:04.5]} 65... Kf5 {[%clk 0:00:05.9]} 66. Rb8 {[%clk 0:00:04.3]} 66...
Ke4 {[%clk 0:00:06]} 67. Rf8 {[%clk 0:00:05.2]} 67... Rf3+ {[%clk 0:00:05.9]}
68. Ke1 {[%clk 0:00:04.5]} 68... Nd3+ {[%clk 0:00:06.2]} 69. Ke2 {[%clk
0:00:04.9]} 69... Rxf8 {[%clk 0:00:07.1]} 0-1

[Event "Early-Titled-Tuesday-Blitz-January-16-2024"]
[Site "Chess.com"]
[Date "2024.01.16"]
[Round "4"]
[White "dcremisi"]
[Black "klimkoj"]
[Result "0-1"]
[WhiteElo "2678"]
[BlackElo "2874"]
[TimeControl "180+1"]
[EndTime "8:42:48 PST"]
[Termination "klimkoj won by resignation"]

1. d4 {[%clk 0:03:00.9]} 1... Nf6 {[%clk 0:03:00.1]} 2. Nf3 {[%clk 0:03:00.9]}
2... e6 {[%clk 0:03:00.4]} 3. c4 {[%clk 0:03:00.9]} 3... b6 {[%clk 0:02:59.8]}
4. g3 {[%clk 0:03:00.9]} 4... Bb7 {[%clk 0:03:00]} 5. Bg2 {[%clk 0:03:01.1]}
5... Bb4+ {[%clk 0:03:00.6]} 6. Bd2 {[%clk 0:03:00.5]} 6... Be7 {[%clk
0:03:00.3]} 7. O-O {[%clk 0:03:00.5]} 7... c5 {[%clk 0:03:01.1]} 8. Nc3 {[%clk
0:02:59.6]} 8... O-O {[%clk 0:03:00.4]} 9. Re1 {[%clk 0:02:47]} 9... cxd4 {[%clk
0:02:58.8]} 10. Nxd4 {[%clk 0:02:47]} 10... Bxg2 {[%clk 0:02:59.5]} 11. Kxg2
{[%clk 0:02:47.4]} 11... Qc8 {[%clk 0:03:00]} 12. b3 {[%clk 0:02:46.8]} 12...
Nc6 {[%clk 0:02:58.3]} 13. Nxc6 {[%clk 0:02:45]} 13... dxc6 {[%clk 0:02:53.6]}
14. Qc2 {[%clk 0:02:45]} 14... e5 {[%clk 0:02:52.9]} 15. Ne4 {[%clk 0:02:41.7]}
15... Ne8 {[%clk 0:02:42.8]} 16. Bg5 {[%clk 0:02:32.6]} 16... f6 {[%clk
0:02:40.3]} 17. Be3 {[%clk 0:02:31.8]} 17... Qe6 {[%clk 0:02:39.5]} 18. f4
{[%clk 0:02:13.8]} 18... f5 {[%clk 0:02:35.3]} 19. Nf2 {[%clk 0:02:07.4]} 19...
e4 {[%clk 0:02:35.2]} 20. Rad1 {[%clk 0:02:07.1]} 20... Bb4 {[%clk 0:02:30.7]}
21. Rf1 {[%clk 0:02:02]} 21... Nf6 {[%clk 0:02:28.6]} 22. Bd4 {[%clk 0:01:48.9]}
22... Rad8 {[%clk 0:02:26.2]} 23. Bxf6 {[%clk 0:01:44.7]} 23... Qxf6 {[%clk
0:02:25.8]} 24. Rxd8 {[%clk 0:01:44.6]} 24... Rxd8 {[%clk 0:02:25.8]} 25. Rd1
{[%clk 0:01:44.9]} 25... Rd4 {[%clk 0:02:21.8]} 26. e3 {[%clk 0:01:36.9]} 26...
Rxd1 {[%clk 0:02:20.6]} 27. Qxd1 {[%clk 0:01:37]} 27... Qd6 {[%clk 0:02:16.4]}
28. Qxd6 {[%clk 0:01:28.6]} 28... Bxd6 {[%clk 0:02:17.3]} 29. g4 {[%clk
0:01:27.7]} 29... g6 {[%clk 0:02:17.7]} 30. gxf5 {[%clk 0:01:27.8]} 30... gxf5
{[%clk 0:02:18.6]} 31. Nh1 {[%clk 0:01:27.1]} 31... Kg7 {[%clk 0:02:18.5]} 32.
Ng3 {[%clk 0:01:27.2]} 32... Kg6 {[%clk 0:02:18.7]} 33. Kf2 {[%clk 0:01:27.8]}
33... Bb4 {[%clk 0:02:08.4]} 34. Ke2 {[%clk 0:01:27.8]} 34... Bc3 {[%clk
0:02:08.2]} 35. h3 {[%clk 0:01:27.9]} 35... Bf6 {[%clk 0:02:03.2]} 36. Kf2
{[%clk 0:01:23.6]} 36... Bh4 {[%clk 0:02:03.3]} 37. Kg2 {[%clk 0:01:23.8]} 37...
Kf6 {[%clk 0:01:49.1]} 38. Ne2 {[%clk 0:01:17.1]} 38... c5 {[%clk 0:01:39.8]}
39. Nc3 {[%clk 0:01:12.7]} 39... Be1 {[%clk 0:01:37]} 40. Nb5 {[%clk 0:01:12.7]}
40... a6 {[%clk 0:01:27.5]} 41. Nc7 {[%clk 0:01:10.9]} 41... Ke7 {[%clk
0:01:27.3]} 42. Nxa6 {[%clk 0:01:02.4]} 42... Kd7 {[%clk 0:01:23.3]} 43. Kf1
{[%clk 0:01:00]} 43... Bc3 {[%clk 0:01:20.8]} 44. a3 {[%clk 0:00:57.4]} 44...
Bb2 {[%clk 0:01:17.7]} 45. b4 {[%clk 0:00:40.9]} 45... Bxa3 {[%clk 0:01:14.1]}
46. b5 {[%clk 0:00:34.9]} 46... Bb2 {[%clk 0:01:05.9]} 47. Ke2 {[%clk
0:00:34.3]} 47... Bf6 {[%clk 0:01:03.6]} 48. Kf2 {[%clk 0:00:31.1]} 48... Be7
{[%clk 0:00:57.3]} 49. Ke2 {[%clk 0:00:29.6]} 49... Bd6 {[%clk 0:00:57.5]} 50.
Kf2 {[%clk 0:00:25.7]} 50... Ke7 {[%clk 0:00:58]} 51. Kg2 {[%clk 0:00:24.4]}
51... Kf6 {[%clk 0:00:56.7]} 52. Kg3 {[%clk 0:00:21.8]} 52... Kg6 {[%clk
0:00:56.6]} 53. Kg2 {[%clk 0:00:22.2]} 53... Kh5 {[%clk 0:00:57.1]} 54. Kg3
{[%clk 0:00:22.5]} 54... Kh6 {[%clk 0:00:57.6]} 55. Kg2 {[%clk 0:00:22.8]} 55...
Kg6 {[%clk 0:00:58.5]} 56. Kg3 {[%clk 0:00:23.2]} 56... Kh5 {[%clk 0:00:58.7]}
57. Kg2 {[%clk 0:00:23.6]} 57... Kh4 {[%clk 0:00:59.6]} 58. Kh2 {[%clk
0:00:23.9]} 58... h6 {[%clk 0:00:55.8]} 59. Kg2 {[%clk 0:00:24.1]} 59... h5
{[%clk 0:00:33.4]} 60. Kh2 {[%clk 0:00:22.8]} 60... Bxf4+ {[%clk 0:00:34.1]} 61.
exf4 {[%clk 0:00:22.7]} 61... e3 {[%clk 0:00:35]} 62. Kg2 {[%clk 0:00:22.8]}
62... e2 {[%clk 0:00:35.8]} 63. Kf2 {[%clk 0:00:21.9]} 63... Kxh3 {[%clk
0:00:36.7]} 64. Nc7 {[%clk 0:00:20]} 64... e1=Q+ {[%clk 0:00:25.4]} 65. Kxe1
{[%clk 0:00:20]} 65... Kg2 {[%clk 0:00:26.3]} 66. Nd5 {[%clk 0:00:17.6]} 66...
h4 {[%clk 0:00:27.2]} 67. Ne3+ {[%clk 0:00:17.6]} 67... Kf3 {[%clk 0:00:26.5]}
68. Nxf5 {[%clk 0:00:16.6]} 68... h3 {[%clk 0:00:27.1]} 69. Nh4+ {[%clk
0:00:13.9]} 69... Kg4 {[%clk 0:00:23.5]} 70. Ng2 {[%clk 0:00:02.1]} 70... hxg2
{[%clk 0:00:22.9]} 71. Kf2 {[%clk 0:00:03]} 71... Kxf4 {[%clk 0:00:23.4]} 72.
Kxg2 {[%clk 0:00:03.9]} 72... Ke4 {[%clk 0:00:24.3]} 0-1

[Event "Early-Titled-Tuesday-Blitz-January-16-2024"]
[Site "Chess.com"]
[Date "2024.01.16"]
[Round "4"]
[White "hongnhung1234"]
[Black "NinoMaisuradze"]
[Result "0-1"]
[WhiteElo "2569"]
[BlackElo "2315"]
[TimeControl "180+1"]
[EndTime "8:42:51 PST"]
[Termination "NinoMaisuradze won by resignation"]

1. e4 {[%clk 0:03:00.9]} 1... e5 {[%clk 0:03:00.9]} 2. Nf3 {[%clk 0:02:59.4]}
2... Nc6 {[%clk 0:03:00.3]} 3. d4 {[%clk 0:02:59]} 3... exd4 {[%clk 0:02:58.3]}
4. Nxd4 {[%clk 0:02:59.9]} 4... Bc5 {[%clk 0:02:58.4]} 5. Be3 {[%clk 0:03:00]}
5... Qe7 {[%clk 0:02:41]} 6. Nf5 {[%clk 0:01:56]} 6... Qxe4 {[%clk 0:02:39.6]}
7. Nxg7+ {[%clk 0:01:32.4]} 7... Kf8 {[%clk 0:02:37.3]} 8. Bd3 {[%clk
0:00:51.2]} 8... Qxg2 {[%clk 0:02:36.2]} 9. Bxc5+ {[%clk 0:00:50.1]} 9... Kxg7
{[%clk 0:02:33.8]} 10. Kd2 {[%clk 0:00:41.3]} 10... Qg5+ {[%clk 0:02:21.9]} 11.
Be3 {[%clk 0:00:40.9]} 11... Qa5+ {[%clk 0:02:20.3]} 12. Nc3 {[%clk 0:00:41.3]}
12... d6 {[%clk 0:02:04.5]} 13. Qf3 {[%clk 0:00:31.9]} 13... Be6 {[%clk
0:01:56.1]} 14. a3 {[%clk 0:00:28.1]} 14... Kf8 {[%clk 0:01:48.5]} 15. Qg3
{[%clk 0:00:19.8]} 15... Ke8 {[%clk 0:01:24.6]} 16. Qg7 {[%clk 0:00:19]} 16...
Qe5 {[%clk 0:01:23.2]} 17. Qg2 {[%clk 0:00:17.2]} 17... Nge7 {[%clk 0:01:20.1]}
18. Rae1 {[%clk 0:00:17.1]} 18... Qh5 {[%clk 0:01:14.9]} 19. Kc1 {[%clk
0:00:15.2]} 19... Kd7 {[%clk 0:01:14.2]} 20. Qe4 {[%clk 0:00:12.4]} 20... Bf5
{[%clk 0:01:09.3]} 21. Qc4 {[%clk 0:00:10.5]} 21... Bxd3 {[%clk 0:01:09.4]} 22.
Qxd3 {[%clk 0:00:11.4]} 22... Qf5 {[%clk 0:01:08.8]} 23. Qc4 {[%clk 0:00:10.3]}
23... Rhg8 {[%clk 0:01:04.4]} 24. Kb1 {[%clk 0:00:09.8]} 24... a6 {[%clk
0:01:03.2]} 25. Rd1 {[%clk 0:00:10.1]} 25... Rae8 {[%clk 0:00:59.8]} 26. Qb3
{[%clk 0:00:10.4]} 26... Kc8 {[%clk 0:00:59.8]} 27. Ne2 {[%clk 0:00:09.9]} 27...
Qe6 {[%clk 0:00:59.3]} 28. Qc3 {[%clk 0:00:09.4]} 28... Nd5 {[%clk 0:00:59.5]}
29. Qd2 {[%clk 0:00:07.7]} 29... Nxe3 {[%clk 0:00:59.4]} 30. fxe3 {[%clk
0:00:08.4]} 30... Qxe3 {[%clk 0:01:00.3]} 31. Qxe3 {[%clk 0:00:09]} 31... Rxe3
{[%clk 0:01:00.8]} 32. Nf4 {[%clk 0:00:09]} 32... Rg4 {[%clk 0:01:00.5]} 33. Nd5
{[%clk 0:00:09.2]} 33... Re2 {[%clk 0:01:00.7]} 34. h3 {[%clk 0:00:08.8]} 34...
Rgg2 {[%clk 0:01:00.6]} 35. Rc1 {[%clk 0:00:09.6]} 35... Rgf2 {[%clk 0:01:00.1]}
36. Rhg1 {[%clk 0:00:08.6]} 36... Rg2 {[%clk 0:01:00]} 37. Rgf1 {[%clk
0:00:07.9]} 37... Ref2 {[%clk 0:01:00.6]} 38. Rfe1 {[%clk 0:00:08.2]} 38... Ne5
{[%clk 0:01:01.1]} 39. Ne7+ {[%clk 0:00:07.4]} 39... Kd7 {[%clk 0:01:00.9]} 40.
Nd5 {[%clk 0:00:08.3]} 40... f5 {[%clk 0:01:00.3]} 41. Nf6+ {[%clk 0:00:08.1]}
41... Ke6 {[%clk 0:01:00.1]} 42. Nxh7 {[%clk 0:00:08.3]} 42... Rg7 {[%clk
0:01:00.6]} 43. Nf8+ {[%clk 0:00:07.5]} 43... Ke7 {[%clk 0:00:59.7]} 44. Rf1
{[%clk 0:00:04]} 44... Rxf1 {[%clk 0:00:59.4]} 45. Rxf1 {[%clk 0:00:04.9]} 45...
Kxf8 {[%clk 0:00:59.4]} 46. Rxf5+ {[%clk 0:00:05.7]} 46... Rf7 {[%clk 0:01:00]}
47. Rh5 {[%clk 0:00:06.4]} 47... Kg7 {[%clk 0:00:59.8]} 48. Ka2 {[%clk
0:00:05.8]} 48... Rf8 {[%clk 0:00:57.2]} 49. c3 {[%clk 0:00:05.5]} 49... Kg6
{[%clk 0:00:56.4]} 50. Rh4 {[%clk 0:00:05.9]} 50... Kg5 {[%clk 0:00:56.3]} 51.
Rb4 {[%clk 0:00:06]} 51... b5 {[%clk 0:00:55.7]} 52. Re4 {[%clk 0:00:06.1]}
52... Rf4 {[%clk 0:00:54.8]} 53. Re3 {[%clk 0:00:06.1]} 53... c5 {[%clk
0:00:54.4]} 54. Rg3+ {[%clk 0:00:05.9]} 54... Kf6 {[%clk 0:00:53.5]} 55. Rg8
{[%clk 0:00:05.4]} 55... Ke6 {[%clk 0:00:52.5]} 56. Ra8 {[%clk 0:00:05.2]} 56...
b4 {[%clk 0:00:50.8]} 57. Rxa6 {[%clk 0:00:04.8]} 57... bxc3 {[%clk 0:00:49.8]}
58. bxc3 {[%clk 0:00:04.9]} 58... Rf3 {[%clk 0:00:50.3]} 59. Kb3 {[%clk
0:00:04.7]} 59... Rxh3 {[%clk 0:00:48.4]} 60. a4 {[%clk 0:00:05.2]} 60... Kd5
{[%clk 0:00:46.8]} 61. a5 {[%clk 0:00:05.2]} 61... c4+ {[%clk 0:00:47.2]} 62.
Kb4 {[%clk 0:00:05.3]} 62... Nc6+ {[%clk 0:00:44.8]} 63. Kb5 {[%clk 0:00:05.4]}
63... Rxc3 {[%clk 0:00:45.3]} 64. Ra8 {[%clk 0:00:04.4]} 64... Rb3+ {[%clk
0:00:45.4]} 65. Ka4 {[%clk 0:00:04.7]} 65... Rb4+ {[%clk 0:00:43.2]} 66. Ka3
{[%clk 0:00:04.8]} 66... c3 {[%clk 0:00:43.8]} 67. Rh8 {[%clk 0:00:04.2]} 67...
Rc4 {[%clk 0:00:42.3]} 68. Rh5+ {[%clk 0:00:04.3]} 68... Kd4 {[%clk 0:00:40.3]}
69. a6 {[%clk 0:00:03.6]} 69... c2 {[%clk 0:00:39.3]} 70. Rh4+ {[%clk
0:00:03.7]} 70... Kc5 {[%clk 0:00:39.4]} 71. Rxc4+ {[%clk 0:00:04]} 71... Kxc4
{[%clk 0:00:40.3]} 72. Kb2 {[%clk 0:00:04.9]} 72... Kd3 {[%clk 0:00:40.2]} 73.
Kc1 {[%clk 0:00:05]} 73... Na7 {[%clk 0:00:39.9]} 74. Kb2 {[%clk 0:00:04.8]}
74... Kd2 {[%clk 0:00:40.8]} 75. Ka2 {[%clk 0:00:05]} 75... c1=Q {[%clk
0:00:41.7]} 0-1